Cogmind - Beta 14 @@@ ROGUE MODE // 2025.05.03 @ 13:18:57 Player: Domo Result: Destroyed by G-47 Trooper with Particle Gun Performance ------------- Evolutions (2) 1000 Regions Visited (3) 600 Robots Destroyed (71) 355 Value Destroyed (2199) 2199 Prototype IDs (0) 0 Alien Tech Used (0) 0 Bonus (63) 63 TOTAL SCORE: 4217 Bonus ------- High Alert Combat Kills 63 Cogmind --------- Core Integrity 0/550 Matter 300/300 Energy 23/100 System Corruption 0% Temperature Cool (10) Movement Walking (120) Location -8/Materials Parts ------- > --- POWER (1) -------- (None) > --- PROPULSION (3) --- Carbon-fiber Leg > --- UTILITY (4) ------ Improved Heat Sink Improved Heat Sink Advanced Targeting Computer > --- WEAPON (3) ------- Particle Gun Beam Cannon > --- INVENTORY (5) ---- Aluminum Leg Aluminum Leg Aluminum Leg Cesium-ion Thruster Peak State ------------ > --- POWER ------------ Improved Ion Engine > --- PROPULSION ------- Aluminum Leg Aluminum Leg Titanium Leg > --- UTILITY ---------- Improved Heat Sink Small Storage Unit Advanced Targeting Computer Light Armor Plating > --- WEAPON ----------- Autogun Minigun Gauss Rifle > --- INVENTORY -------- Ion Engine Ion Engine Aluminum Leg Aluminum Leg Cesium-ion Thruster Improved Propulsion Shielding [Rating: 25] Favorites ----------- Power Improved Ion Engine Engine Improved Ion Engine Power Core Light Nuclear Core Propulsion Aluminum Leg Leg Aluminum Leg Utility Small Storage Unit Device Improved Heat Sink Storage Small Storage Unit Processor Advanced Targeting Computer Protection Medium Armor Plating Weapon Autogun Energy Gun Particle Gun Energy Cannon Beam Cannon Ballistic Gun Autogun Launcher Grenade Launcher Build | -11 -10 -9 -8 ------- Run | Yrd Mat Mat Mat Slots Evolved 4 | . . 2 2 Power . | . . . . Propulsion 1 | . . . 1 Utility 2 | . . 2 . Weapon 1 | . . . 1 Parts Attached 60 | 6 3 12 39 Power 10 | 1 . 3 6 Engine 9 | 1 . 3 5 Core 1 | . . . 1 Reactor . | . . . . Propulsion 20 | 2 . 2 16 Treads . | . . . . Leg 20 | 2 . 2 16 Wheel . | . . . . Hover . | . . . . Flight . | . . . . Utility 18 | 1 1 5 11 Device 6 | . . 1 5 Storage 2 | 1 . . 1 Processor 2 | . . . 2 Hackware . | . . . . Protection 8 | . 1 4 3 Artifact . | . . . . Weapon 12 | 2 2 2 6 Energy Gun 1 | . . . 1 Energy Cannon 1 | . . . 1 Ballistic Gun 9 | 2 1 2 4 Ballistic Cannon . | . . . . Launcher 1 | . 1 . . Special Weapon . | . . . . Impact Weapon . | . . . . Slashing Weapon . | . . . . Piercing Weapon . | . . . . Special Melee Weapon . | . . . . Unidentified Prototypes . | . . . . Parts Lost 28 | . 1 4 23 Power 6 | . . 1 5 Propulsion 7 | . . 1 6 Utility 9 | . . 2 7 Weapon 6 | . 1 . 5 Highest Loss Streak 4 | . 1 2 4 To Critical Strikes . | . . . . Average Slot Usage (%) 89 | . 89 95 87 Engine 9 | . 14 10 7 Leg 24 | . 28 22 24 Device 4 | . . 1 6 Storage 9 | . 14 11 8 Processor 5 | . . . 8 Protection 13 | . 4 27 8 Ballistic Gun 19 | . 14 22 19 Launcher 1 | . 12 . . Peak Build Rating 25 | 6 7 15 25 Average Rating 15 | 4 6 13 19 On Entrance 7 | . 6 7 15 Naked Turns . | . . . . Heaviest Build 38 | 10 15 35 38 Greatest Support 37 | 20 20 20 37 Greatest Overweight (x) 1 | . . 1 1 Average Overweight (x) . | . . . . Largest Inventory Capacity 8 | 8 8 8 8 Average Capacity 7 | 7 8 8 7 Most Carried 8 | 1 6 8 8 Average Carried 5 | . 3 6 6 Final Capacity 8 | 8 8 8 5 Final Carried 8 | 1 5 8 4 Class Distribution -------------------- 38% | Scavenger-Mutant 30% | Mutant 15% | Tank 9% | Scavenger-Gunner 5% | Gunner Dominant Class ---------------- Mutant | -10/Materials Scavenger-Mutant | -9/Materials Scavenger-Mutant | -8/Materials Resources | -11 -10 -9 -8 ----------- Run | Yrd Mat Mat Mat Matter Collected 1988 | 205 74 684 1025 Remotely . | . . . . Salvage Created 2544 | . 268 482 1794 Parts 153 | . 28 47 78 Haulers Intercepted . | . . . . Recyclers Shooed . | . . . . Parts Field Recycled . | . . . . Retrieved Matter . | . . . . Parts Self-Destructed . | . . . . Prevented . | . . . . Kills | -11 -10 -9 -8 ------- Run | Yrd Mat Mat Mat Combat Hostiles Destroyed 58 | . 8 19 31 Guns 42 | . . 18 24 Cannons 6 | . . . 6 AOE 9 | . 8 1 . Classes Destroyed 10 | . 5 2 3 Worker 5 | . 4 . 1 Builder 4 | . 2 . 2 Tunneler 1 | . 1 . . Recycler 1 | . . . 1 Watcher 5 | . 1 2 2 Swarmer 12 | . . 12 . Grunt 38 | . 8 6 24 Brawler 1 | . . . 1 Sentry 5 | . . 1 4 Hunter 2 | . . . 2 Best Kill Streak 9 | . 6 4 9 Combat Bots Only 6 | . 4 4 6 Max Kills in Single Turn 6 | . 6 2 1 Gunslinging . | . . . . Exploded 4 | . 4 1 . Melee . | . . . . Uniques/NPCs Destroyed . | . . . . Combat | -11 -10 -9 -8 -------- Run | Yrd Mat Mat Mat Hostile Shots Fired 449 | . 18 124 307 Missed 137 | . 6 34 97 Damage Taken 4413 | . 318 873 3222 Core 684 | . 21 109 554 Absorbed by Shields . | . . . . Redirected to Shielding 106 | . . . 106 Core Remaining (%) 87 | 100 91 72 . Volleys Fired 210 | . 14 71 125 Largest 3 | . 2 2 3 Hottest 125 | . 40 46 125 Shots Fired 376 | . 15 142 219 Gun 326 | . 2 142 182 Cannon 37 | . . . 37 Launcher 13 | . 13 . . Special . | . . . . Kinetic 313 | . 2 142 169 Thermal 50 | . . . 50 Explosive 13 | . 13 . . Electromagnetic . | . . . . Robot Hit Streak 22 | . 3 6 22 Robot Miss Streak 6 | . 3 6 2 Penetration Max . | . . . . Secondary Targets 2 | . . 2 . Max Gunslinging Chain 1 | . . 1 . Shots Hit Robots 212 | . 4 43 165 Core Hits 123 | . 22 26 75 Critical Kills 2 | . . . 2 Critical Parts Destroyed 1 | . . . 1 Critical Strikes 3 | . . . 3 Meltdown 1 | . . . 1 Destroy 2 | . . . 2 Melee Attacks . | . . . . Impact . | . . . . Slashing . | . . . . Piercing . | . . . . Sneak Attacks . | . . . . Combat Hostiles . | . . . . Follow-up Attacks . | . . . . Damage Inflicted 4834 | . 1265 794 2775 Guns 2792 | . . 614 2178 Cannons 579 | . . . 579 Explosions 1445 | . 1265 180 . Melee . | . . . . Ramming 18 | . . . 18 Kinetic 2610 | . . 614 1996 Thermal 1319 | . 558 . 761 Explosive 834 | . 654 180 . Electromagnetic 53 | . 53 . . Impact . | . . . . Slashing . | . . . . Piercing . | . . . . Highest Corruption . | . . . . Average Corruption . | . . . . Corruption Purged . | . . . . Corruption Blocked . | . . . . Overload Shots . | . . . . Overflow Damage 142 | . 75 67 . Projectiles . | . . . . Explosions 142 | . 75 67 . Melee . | . . . . Knockbacks . | . . . . Impact . | . . . . Kinetic . | . . . . Secondary . | . . . . Self-Inflicted Damage 174 | . 113 61 . Shots 4 | . 3 1 . Rammed . | . . . . Targets Rammed 6 | . . . 6 Kicked 6 | . . . 6 Crushed . | . . . . Highest Temperature 210 | . 18 210 121 Average Temperature 55 | . 9 59 55 Received Heat Transfer 1674 | . 75 114 1485 Siege Activations . | . . . . Robots Corrupted . | . . . . Combat Hostiles . | . . . . Parts Fried . | . . . . Impact Corruptions . | . . . . Robots Melted 1 | . . . 1 Combat Hostiles 1 | . . . 1 Parts Melted 2 | . . . 2 Heat Transferred 2015 | . 350 . 1665 Parts Sabotaged . | . . . . Parts Stolen . | . . . . Parts Stripped . | . . . . Power Chain Reactions 1 | . 1 . . Alert | -11 -10 -9 -8 ------- Run | Yrd Mat Mat Mat Peak Influence 520 | . 429 366 520 Initial 105 | . . 98 105 Average 220 | . 231 228 220 Maximum Alert Level 2 | . 2 1 2 Low Security (%) 39 | 100 18 33 46 Level 1 56 | . 77 66 47 Level 2 3 | . 3 . 5 Level 3 . | . . . . Level 4 . | . . . . Level 5 . | . . . . High Security . | . . . . Max Security . | . . . . Squads Dispatched 16 | . 3 2 11 Investigation 7 | . 1 1 5 Extermination . | . . . . Reinforcement 9 | . 2 1 6 Assault . | . . . . Garrison . | . . . . Intercept . | . . . . Searches Triggered . | . . . . Construction Impeded 2 | . . . 2 Haulers Reinforced . | . . . . Active Scanning Responses . | . . . . Cargo Convoy Interrupts . | . . . . Stealth | -11 -10 -9 -8 --------- Run | Yrd Mat Mat Mat Distress Signals 4 | . . 1 3 Communications Jammed . | . . . . Distress Signals . | . . . . Times Spotted 93 | . 15 24 54 Peak Tracking Total 8 | . 5 5 8 Tactical Retreats 9 | . . 2 7 Traps | -11 -10 -9 -8 ------- Run | Yrd Mat Mat Mat Traps Triggered 2 | . 2 . . Indirectly . | . . . . Trap Hack Attempts . | . . . . Triggered . | . . . . Disarmed . | . . . . Reprogrammed . | . . . . Reused . | . . . . Traps Extracted . | . . . . Installed . | . . . . Triggered . | . . . . Machines | -11 -10 -9 -8 ---------- Run | Yrd Mat Mat Mat Machines Disabled 8 | . 6 1 1 Max in Single Turn 3 | . 3 1 1 Machines Repaired . | . . . . Machines Dismantled . | . . . . Machines Sabotaged . | . . . . Overloaded Fab Kills . | . . . . Hacking | -11 -10 -9 -8 --------- Run | Yrd Mat Mat Mat Machines Accessed 9 | . 2 1 6 Terminals 8 | . 2 1 5 Fabricators . | . . . . Repair Stations 1 | . . . 1 Recycling Units . | . . . . Scanalyzers . | . . . . Garrison Access . | . . . . Total Hacks 23 | . 5 2 16 Successful 3 | . 1 . 2 Failed 20 | . 4 2 14 Catastrophic 10 | . 1 1 8 Database Lockouts . | . . . . Manual 13 | . . . 13 Terminals 20 | . 5 2 13 Fabricators . | . . . . Repair Stations 3 | . . . 3 Recycling Units . | . . . . Scanalyzers . | . . . . Garrison Access . | . . . . Terminal Hacks 2 | . 1 . 1 Recall Reinforcements 1 | . . . 1 Registered Components 1 | . 1 . . Fabricator Hacks . | . . . . Repair Station Hacks 1 | . . . 1 Scan Component 1 | . . . 1 Recycling Unit Hacks . | . . . . Scanalyzer . | . . . . Garrison Access Hacks . | . . . . Unauthorized Hacks . | . . . . Terminals . | . . . . Fabricators . | . . . . Repair Stations . | . . . . Recycling Units . | . . . . Scanalyzers . | . . . . Garrison Access . | . . . . Data Cores Recovered . | . . . . Used . | . . . . Hacking Detections 8 | . 1 1 6 Full Trace Events 7 | . 1 1 5 Feedback Events . | . . . . Feedback Blocked . | . . . . Robot Schematics Acquired . | . . . . Robots Built . | . . . . Authchips . | . . . . Time . | . . . . Total Robot Build Rating . | . . . . Part Schematics Acquired . | . . . . Parts Built . | . . . . Authchips . | . . . . Time . | . . . . Total Part Build Rating . | . . . . Parts Repaired . | . . . . Time . | . . . . Parts Recycled . | . . . . Recycled Matter . | . . . . Retrieved Matter . | . . . . Retrieved Components . | . . . . Parts Scanalyzed . | . . . . Part Schematics Acquired . | . . . . Parts Damaged . | . . . . Bothacking | -11 -10 -9 -8 ------------ Run | Yrd Mat Mat Mat Used RIF Installer . | . . . . Robots Hacked . | . . . . Non-combat . | . . . . Combat . | . . . . Robot Hacks Applied . | . . . . Relay Couplers Released . | . . . . Fabnet Peak Effective % . | . . . . Robots Rewired . | . . . . Allies Hacked . | . . . . Hacks Repelled . | . . . . Allies | -11 -10 -9 -8 -------- Run | Yrd Mat Mat Mat Total Allies . | . . . . Largest Group . | . . . . Highest-Rated Group . | . . . . Highest-Rated Ally . | . . . . Total Orders . | . . . . Ally Attacks . | . . . . Total Damage . | . . . . Kills . | . . . . Allies Corrupted . | . . . . Allies Melted . | . . . . Intel | -11 -10 -9 -8 ------- Run | Yrd Mat Mat Mat Robot Analysis Total . | . . . . Derelict Logs Recovered . | . . . . Drone Launches . | . . . . Drone Recoveries . | . . . . Exploration | -11 -10 -9 -8 ------------- Run | Yrd Mat Mat Mat Turns Passed 3286 | 49 459 881 1897 Spaces Moved 1610 | 35 342 350 883 Core 3 | 3 . . . Treads . | . . . . Legs 1607 | 32 342 350 883 Wheels . | . . . . Hover . | . . . . Flight . | . . . . Fastest Speed 50 | 50 120 120 120 Average Speed 143 | 114 120 172 143 Slowest Speed 190 | 120 120 190 190 Overloaded Moves . | . . . . Propulsion Burnouts . | . . . . Robots Hopped . | . . . . Cave-ins Triggered . | . . . . Exploration Rate (%) 36 | 3 61 23 57 Regions Visited 3 Branch Regions . Pre-discovered Areas . | . . . . Known Exits Taken . | . . . . Unknown Exits Taken 3 | 1 1 1 . Scrap Searched . | . . . . Spaces Dug . | . . . . Terrain Destroyed 87 | . 66 21 . Melee . | . . . . Projectile . | . . . . AOE 87 | . 66 21 . Terrain Rammed . | . . . . Walls Destroyed . | . . . . Machines Disabled . | . . . . Actions | -11 -10 -9 -8 --------- Run | Yrd Mat Mat Mat Total 2278 | 41 375 515 1347 Wait 353 | . 12 67 274 Move 1607 | 34 341 349 883 Hop . | . . . . Pick Up 20 | 1 5 9 5 Fast Attach 23 | 6 1 4 12 Attach 12 | . 1 2 9 Detach 1 | . . . 1 Swap 25 | . 1 6 18 Drop 21 | . . 7 14 Fire 210 | . 14 71 125 Melee . | . . . . Ram . | . . . . Kick 6 | . . . 6 Crush . | . . . . Escape Stasis . | . . . . Rewire . | . . . . Trap . | . . . . Miscellaneous . | . . . . Route ------- -11/Scrapyard -10/Materials -9/Materials -8/Materials (discovered 1 exit: [*Fac]) History --------- Turn | Location | Event 26 | -11/Scrapyard | Discovered new exit (range 14) 50 | -11/Scrapyard | Entered Materials 300 | -10/Materials | Build established: Mutant 474 | -10/Materials | Discovered new exit (range 10) 509 | -10/Materials | Entered another Materials area 509 | -9/Materials | Evolved 2 slots: Utility x2 1035 | -9/Materials | Build established: Scavenger-Mutant 1322 | -9/Materials | Discovered new exit (range 5) 1390 | -9/Materials | Entered another Materials area 1390 | -8/Materials | Evolved 2 slots: Propulsion x1, Weapon x1 1698 | -8/Materials | Build established: Tank 2512 | -8/Materials | Build established: Scavenger-Gunner 2861 | -8/Materials | Lost 3 parts (1p1u1w) 2885 | -8/Materials | Build established: Scavenger-Mutant 3013 | -8/Materials | Discovered new exit (range 16) 3096 | -8/Materials | Core integrity fell below 50% 3117 | -8/Materials | Lost 4 parts (1p1n1u1w) 3194 | -8/Materials | Core integrity fell below 20% 3287 | -8/Materials | Destroyed by G-47 Trooper with Particle Gun Last Messages --------------- G-47 Trooper overheating. K-01 Serf collects debris. G-47 Trooper heat damages Aluminum Leg, Imp. Heat Sink, Aluminum Leg. K-01 Serf collects debris. G-47 Trooper heat damages Imp. Heat Sink, Lgt. Nuclear Core, Aluminum Leg, Particle Gun. G-47 Trooper heat spikes uncontrollably. G-47 Trooper overheating. K-01 Serf cleans the Neutrino Reactor. G-47 Trooper heat short circuits Particle Gun. G-47 Trooper overheating. Destroyed Broken Particle Gun. G-47 Trooper overheating. G-47 Trooper destroyed. K-01 Serf collects debris. Acquired 23 matter. Kicked K-01 Serf out of the way. K-01 Serf collects debris. Aluminum Leg destroyed. Map ----- +----------------------------------------------------+ | ???????????????????????????????????????????????? | | ???????????????????????????????????????????????? | | ???????????????????????????????????????????????? | | ???????????????????????????????????????????????? | | ???????????????????????????????????????????????? | | ??????????????????????????????????????????????? | | #????????????????????#######??????????????????? | | #???????????????????? #??????????????????? | | #??????????????????"" #??????????????????? | | #????????########??""" #??????????????????? | | #????????# """ =#???"" ???????????????????? | | #????????# "T" #??? ] ???????????????????? | | #????????# #????" ????????????????????? | | ?#????????# ! #????" ! ????????????????????? | | ??????????# [ #????? ?????????????????????? | | #######???# =%= #????? ?????????????????????? | | ########/#########+##????????????????????? | | *[=% = r *#????????????????????? | | #####!########### *[#????????????????????? | | ### #???# #?????????#!=%#????????????????????? | | ??# #???#%#??######## ==#????????????????????? | | ??# #####"#### # k#????????????????????? | | ??+ ## =* ## # #????????????????????? | | ??# ##"" ! ## """%#= #????????????????????? | | ??# ##"" ## """%;=% #????????????????????? | | ### ##"T ## """!#=k@#????????????????????? | | #"" ## # #????????????????????? | | ## #"" ######### #????????????????????? | | ?# T + #???????# #????????????????????? | | ## # #???????# +????????????????????? | | ## # #???????# g#????????????????????? | | ######## """ #???????# g#????????????????????? | | #??????# """ #???????# ????????????????????? | | #??????# """ #???????+ ????????????????????? | | #??????# #???????# ????????????????????? | | ###############???????# #???????????????????? | | # ## #?????????# #???????????????????? | | + "" ## #?????????# +???????????????????? | | # """ ## #?????????#k####???????????????????? | | # """ ## #?????????# ???????????????????????? | | # ## #??????????w???????????????????????? | | # """ ## #??????????????????????????????????? | | # """ ==+ #??????????????????????????????????? | | # """ !%####??????????????????????????????????? | | # #?????????????????????????????????????? | | ##########?????????????????????????????????????? | | #??????????????????????????????????????????????? | | #??????????????????????????????????????????????? | | #??????????????????????????????????????????????? | | #??????????????????????????????????????????????? | +----------------------------------------------------+ Best States ------------- Heat Dissipation 59 Energy Generation 14 Energy Capacity 265 Matter Stores 300 Matter Capacity 300 Sight Range 20 Terrain Scan Range 16 Terrain Scan Density 10 Armor Coverage 600 Propulsion Shielding 66 Evasion (%) 55 Targeting Accuracy 8 Item Schematics ----------------- None Robot Schematics ------------------ None Fabricated ------------ Nothing Alien Tech Used ----------------- None Achievements -------------- None Challenges ------------ None Game ------ Seed CouplerPhasingMace Manual? 0 Play Time 00:31:55 Cumulative 17.0 hours Start 2025.05.03 @ 12:50:50 End 2025.05.03 @ 13:18:57 Sessions 1 Manual Loads 0 Difficulty Rogue Special Mode None Game No. 22 Rogue 11 Adventurer 11 Explorer 0 Win Type - Total 0 Types 0/0/0/0/0/0/0/0/0 Lore% 4 Gallery% 14 Achievement% 15 Wizard Run 0 Options --------- Layout 1 ASCII 0 Keyboard 1 Movement Vi Keybinds 0 Fullscreen 2 Font 24/Smallcaps Map View 50x35 Zoom Use 0% Tactical HUD 0 Map Filters NONE Filters NONE Steam 1 RUN: 60be6b26-9bd7-42a8-82c6-1565caeceb21